bitfinex-derivatives/quotes_BTCF0:USTF0_20241019
["timestamp","ask_amount","ask_price","bid_price","bid_amount"]
[1729346356815,0.066228,68149.0,68148.0,0.23002233]
[1729346357017,0.066228,68149.0,68148.0,0.59082233]
[1729346358518,0.066228,68149.0,68148.0,0.23002233]
[1729346358724,0.066228,68149.0,68148.0,0.3608]
[1729346359230,0.066029,68148.0,68147.0,0.06603]
[1729346359427,0.066229,68148.0,68147.0,0.06603]
[1729346359623,0.066229,68148.0,68147.0,0.42683]
[1729346360028,0.066229,68148.0,68147.0,0.06603]
[1729346360226,0.066229,68148.0,68147.0,0.42683]
[1729346361124,0.066229,68148.0,68147.0,0.06603]
[1729346361321,0.066229,68148.0,68147.0,0.42683]
[1729346361624,0.066229,68148.0,68147.0,0.06603]
[1729346361824,0.066229,68148.0,68147.0,0.42683]
[1729346364927,0.066229,68148.0,68147.0,0.06603]
[1729346365128,0.066229,68148.0,68147.0,0.42683]
[1729346365829,0.066229,68148.0,68147.0,0.65686171]
[1729346367527,0.066229,68148.0,68147.0,0.65688055]
[1729346370025,0.066229,68148.0,68147.0,0.29608055]
[1729346370422,0.066229,68148.0,68147.0,0.65688055]
[1729346372426,0.066229,68148.0,68147.0,0.65686983]
[1729346373028,0.066229,68148.0,68147.0,0.29606983]
[1729346373223,0.066229,68148.0,68147.0,0.65686983]
[1729346373625,0.066229,68148.0,68147.0,0.29606983]
[1729346373835,0.066229,68148.0,68147.0,0.42683]
[1729346374130,0.066229,68148.0,68147.0,0.06603]
[1729346374320,0.066229,68148.0,68147.0,0.42683]
[1729346375025,0.066229,68148.0,68147.0,0.06603]
[1729346375332,0.066229,68148.0,68147.0,0.42683]
[1729346376922,0.066229,68148.0,68147.0,0.06603]
[1729346377117,0.066229,68148.0,68147.0,0.42683]
[1729346377932,0.066229,68148.0,68147.0,0.06603]
[1729346378232,0.066229,68148.0,68147.0,0.42683]
[1729346380436,0.066229,68148.0,68147.0,0.06603]
[1729346380626,0.066229,68148.0,68147.0,0.42683]
[1729346380827,0.066229,68148.0,68147.0,0.65692239]
[1729346381428,0.066229,68148.0,68147.0,0.29612239]
[1729346381628,0.066229,68148.0,68147.0,0.65692239]
[1729346385139,0.066229,68148.0,68147.0,0.29612239]
[1729346385439,0.066229,68148.0,68147.0,0.65692239]
[1729346385733,0.066229,68148.0,68147.0,0.29612239]
[1729346385940,0.066229,68148.0,68147.0,0.65692239]
[1729346386937,0.066229,68148.0,68147.0,0.65693092]
[1729346387342,0.066229,68148.0,68147.0,0.29613092]
[1729346387529,0.066229,68148.0,68147.0,0.65693092]
[1729346389538,0.066229,68148.0,68147.0,0.53180488]
[1729346390542,0.066229,68148.0,68147.0,0.17100488]
[1729346390742,0.066229,68148.0,68147.0,0.53180488]
[1729346391841,0.066229,68148.0,68147.0,0.5317995]
[1729346393236,0.066229,68148.0,68147.0,0.1709995]
[1729346393449,0.066229,68148.0,68147.0,0.5317995]
[1729346394733,0.066229,68148.0,68147.0,0.1709995]
[1729346394938,0.066229,68148.0,68147.0,0.5317995]
[1729346395943,0.066229,68148.0,68147.0,0.42683]
[1729346399253,0.066229,68148.0,68147.0,0.06603]
[1729346399441,0.066229,68148.0,68147.0,0.42683]
[1729346399846,0.066229,68148.0,68147.0,0.06603]
[1729346400049,0.066229,68148.0,68147.0,0.42683]
[1729346404058,0.066229,68148.0,68147.0,0.6568627]
[1729346404059,0.0002,68148.0,68147.0,0.6568627]
[1729346404352,0.066024,68153.0,68151.0,0.066026]
[1729346404554,0.0322,68158.0,68153.0,0.066023]
[1729346404753,0.0322,68158.0,68153.0,0.51486095]
[1729346404754,0.066022,68155.0,68153.0,0.51486095]
[1729346405061,0.066022,68155.0,68154.0,0.10469618]
[1729346408247,0.066022,68155.0,68154.0,0.13078902]
[1729346409556,0.066022,68155.0,68154.0,0.02609284]
[1729346409753,0.066022,68155.0,68154.0,0.10465161]
[1729346410758,0.066022,68155.0,68154.0,0.17067461]
[1729346410959,0.066022,68155.0,68154.0,0.066023]
[1729346418864,0.066022,68155.0,68154.0,0.25875502]
[1729346419169,0.066022,68155.0,68154.0,0.25874018]
[1729346419366,0.066022,68155.0,68154.0,0.17070223]
[1729346420068,0.066022,68155.0,68154.0,0.25874018]
[1729346421972,0.066022,68155.0,68154.0,0.17070223]
[1729346426077,0.066022,68155.0,68154.0,0.066023]
[1729346433481,0.066022,68155.0,68154.0,0.14062498]
[1729346433868,0.066022,68155.0,68154.0,0.28935397]
[1729346434285,0.066022,68155.0,68154.0,0.20135001]
[1729346434978,0.066022,68155.0,68154.0,0.28941857]
[1729346435578,0.066022,68155.0,68154.0,0.20135001]
[1729346436084,0.066022,68155.0,68154.0,0.28941685]
[1729346436876,0.066022,68155.0,68154.0,0.20135001]
[1729346437477,0.066022,68155.0,68154.0,0.28941685]
[1729346446990,0.066022,68155.0,68154.0,0.20135001]
[1729346449003,0.066022,68155.0,68154.0,0.096623]
[1729346451201,0.09436004,68155.0,68154.0,0.096623]
[1729346453509,0.066022,68155.0,68154.0,0.096623]
[1729346456005,0.066022,68155.0,68154.0,0.20141768]
[1729346456306,0.066022,68155.0,68154.0,0.13539468]
[1729346457509,0.066022,68155.0,68154.0,0.13540044]
[1729346459796,0.066022,68155.0,68154.0,0.2602621]
[1729346460401,0.066022,68155.0,68154.0,0.13540044]
[1729346460805,0.066022,68155.0,68154.0,0.26033455]
[1729346461007,0.066022,68155.0,68154.0,0.2603339]
[1729346463011,0.09435986,68155.0,68154.0,0.0306]
[1729346464322,0.09435992,68155.0,68154.0,0.0306]
[1729346467513,0.066022,68155.0,68154.0,0.0306]
[1729346471609,0.066022,68155.0,68154.0,0.13538488]
[1729346476610,0.066022,68155.0,68154.0,0.22346067]
[1729346476920,0.066022,68155.0,68154.0,0.22348072]
[1729346478517,0.066022,68155.0,68154.0,0.13540493]
[1729346479018,0.066022,68155.0,68154.0,0.26031799]
[1729346485617,0.066022,68155.0,68154.0,0.0306]
[1729346486414,0.032,68167.0,68154.0,0.0306]
[1729346486616,0.066012,68165.0,68164.0,0.3608]
[1729346486830,0.09434789,68165.0,68164.0,0.3608]
[1729346487025,0.09434789,68165.0,68164.0,0.3936]
[1729346487215,0.066012,68165.0,68164.0,0.3936]
[1729346487616,0.00220089,68169.0,68166.0,0.066011]
[1729346488017,0.06820989,68169.0,68166.0,0.066011]
[1729346488524,0.00220089,68169.0,68166.0,0.066011]
[1729346488730,0.06601,68168.0,68166.0,0.066011]
[1729346489119,0.00220089,68169.0,68166.0,0.066011]
[1729346489317,0.066011,68167.0,68166.0,0.066011]
[1729346492719,0.0319,68175.0,68164.0,0.42203826]
[1729346492922,0.097903,68175.0,68174.0,0.3608]
[1729346493122,0.066008,68170.0,68169.0,0.0002]
[1729346493320,0.066208,68170.0,68169.0,0.0002]
[1729346494530,0.066208,68170.0,68169.0,0.05891859]
[1729346497423,0.066208,68170.0,68169.0,0.066209]
[1729346499035,0.0002,68170.0,68169.0,0.066209]
[1729346508839,0.0315,68181.0,68169.0,0.10395703]
[1729346509037,0.0315,68181.0,68180.0,0.05853115]
[1729346509450,0.0315,68181.0,68180.0,0.05853483]
[1729346509654,0.0315,68181.0,68177.0,0.07316854]
[1729346509655,0.066,68178.0,68177.0,0.07316854]
[1729346509846,0.0662,68178.0,68177.0,0.07316854]
[1729346510354,0.0662,68178.0,68177.0,0.17648516]
[1729346511045,0.0662,68178.0,68177.0,0.1764613]
[1729346512355,0.0662,68178.0,68177.0,0.10329276]
[1729346512561,0.0662,68178.0,68177.0,0.17648827]
[1729346513057,0.0662,68178.0,68177.0,0.20338484]
[1729346513255,0.0662,68178.0,68177.0,0.13018933]
[1729346515960,0.0662,68178.0,68177.0,0.02689657]
[1729346516253,0.0002,68178.0,68175.0,0.096802]
[1729346516952,0.0002,68176.0,68175.0,0.096802]
[1729346517462,0.066202,68176.0,68175.0,0.096802]
[1729346518749,0.066202,68176.0,68175.0,0.12341239]
[1729346520353,0.066202,68176.0,68175.0,0.16736616]
[1729346520851,0.066202,68176.0,68175.0,0.12341239]
[1729346521252,0.066202,68176.0,68175.0,0.16736616]
[1729346522657,0.0002,68176.0,68175.0,0.16736616]
[1729346522861,0.0002,68176.0,68175.0,0.12341239]
[1729346523255,0.0002,68176.0,68175.0,0.18201742]
[1729346523859,0.0002,68176.0,68175.0,0.34965089]
[1729346524057,0.0002,68178.0,68177.0,0.066001]
[1729346524257,0.0002,68178.0,68177.0,0.6530395]
[1729346524454,0.0002,68178.0,68177.0,0.5300138]
[1729346524653,0.0002,68178.0,68177.0,0.65302316]
[1729346524861,0.00220057,68189.0,68177.0,0.58702216]
[1729346525165,0.06599,68188.0,68187.0,0.07326442]
[1729346526555,0.00220057,68189.0,68186.0,0.43406442]
[1729346526758,0.066191,68187.0,68186.0,0.43406442]
[1729346526957,0.066191,68187.0,68186.0,0.53700416]
[1729346527457,0.066191,68187.0,68186.0,0.43406442]
[1729346528662,0.066191,68187.0,68186.0,0.3608]
[1729346537265,0.066191,68187.0,68186.0,0.43406442]
[1729346537461,0.066191,68187.0,68186.0,0.3608]
[1729346538269,0.066191,68187.0,68186.0,0.43406442]
[1729346538470,0.066191,68187.0,68186.0,0.3608]
[1729346538773,0.066191,68187.0,68186.0,0.53686794]
[1729346538969,0.066191,68187.0,68186.0,0.3608]
[1729346539570,0.066191,68187.0,68186.0,0.426792]
[1729346544576,0.066191,68187.0,68186.0,0.3608]
[1729346545872,0.066191,68187.0,68186.0,0.46362603]
[1729346553982,0.066191,68187.0,68186.0,0.3608]
[1729346560993,0.066191,68187.0,68186.0,0.46381119]
[1729346564593,0.066191,68187.0,68186.0,0.46387259]
[1729346569494,0.066191,68187.0,68186.0,0.46388941]
[1729346570989,0.066191,68187.0,68186.0,0.55185435]
[1729346571193,0.066191,68187.0,68186.0,0.61784635]
[1729346575306,0.066191,68187.0,68186.0,0.52988141]
[1729346576004,0.066191,68187.0,68186.0,0.426792]
[1729346576803,0.09451503,68187.0,68186.0,0.426792]
[1729346578810,0.066191,68187.0,68186.0,0.426792]
[1729346580602,0.09451525,68187.0,68186.0,0.426792]
[1729346581707,0.09451572,68187.0,68186.0,0.426792]
[1729346582207,0.066191,68187.0,68186.0,0.426792]
[1729346584104,0.066191,68187.0,68186.0,0.52995391]
[1729346585701,0.066191,68187.0,68186.0,0.61791885]
[1729346586906,0.066191,68187.0,68186.0,0.52995391]
[1729346587219,0.066191,68187.0,68186.0,0.61812064]
[1729346587909,0.066191,68187.0,68186.0,0.53008945]
[1729346588507,0.066191,68187.0,68186.0,0.61812061]
[1729346588702,0.066191,68187.0,68186.0,0.53008945]
[1729346589606,0.066191,68187.0,68186.0,0.61812061]
[1729346590008,0.066191,68187.0,68186.0,0.53008945]
[1729346591117,0.066191,68187.0,68186.0,0.426792]
[1729346598221,0.066191,68187.0,68186.0,0.52999779]
[1729346598523,0.066191,68187.0,68186.0,0.618018]
[1729346598712,0.066191,68187.0,68186.0,0.52999779]
[1729346601516,0.066191,68187.0,68186.0,0.52992409]
[1729346602220,0.066191,68187.0,68186.0,0.61793371]
[1729346606129,0.066191,68187.0,68186.0,0.426792]
[1729346613144,0.066191,68187.0,68186.0,0.52992797]
[1729346613343,0.066191,68187.0,68186.0,0.55194559]
[1729346628259,0.066191,68187.0,68186.0,0.3608]
[1729346636161,0.066191,68187.0,68186.0,0.46351928]
[1729346639669,0.066191,68187.0,68186.0,0.46352194]
[1729346644271,0.066191,68187.0,68186.0,0.3608]
[1729346646773,0.065991,68187.0,68186.0,0.3608]
[1729346651386,0.065991,68187.0,68186.0,0.46352111]
[1729346652469,0.065991,68187.0,68186.0,0.52951311]
[1729346652785,0.065991,68187.0,68186.0,0.52951787]
[1729346653170,0.065985,68194.0,68187.0,0.065991]
[1729346653375,0.065984,68194.0,68193.0,0.426785]
[1729346653580,0.065984,68194.0,68193.0,0.52951087]
[1729346653779,0.065984,68194.0,68193.0,0.61754737]
[1729346654183,0.065984,68194.0,68193.0,0.52951087]
[1729346654381,0.065984,68194.0,68193.0,0.61748776]
[1729346655790,0.0309,68201.0,68196.0,0.065982]
[1729346655791,0.065981,68198.0,68196.0,0.065982]
[1729346655981,0.065981,68198.0,68197.0,0.17602149]
[1729346656181,0.065981,68198.0,68197.0,0.07329562]
[1729346656581,0.0309,68201.0,68195.0,0.07329562]
[1729346656582,0.065982,68196.0,68195.0,0.07329562]
[1729346656775,0.0002,68196.0,68194.0,0.07329562]
[1729346656976,0.0002,68196.0,68193.0,0.38760885]
[1729346656977,0.0002,68195.0,68193.0,0.46090447]
[1729346657275,0.0002,68195.0,68193.0,0.38760885]
[1729346657276,0.066184,68194.0,68193.0,0.38760885]
[1729346658085,0.066184,68194.0,68193.0,0.02680885]
[1729346658383,0.065985,68193.0,68192.0,0.07329562]
[1729346658686,0.066185,68193.0,68192.0,0.07329562]
[1729346658888,0.066185,68193.0,68192.0,0.09949704]
[1729346659285,0.066185,68193.0,68192.0,0.02620142]
[1729346659490,0.065986,68192.0,68191.0,0.3608]
[1729346659689,0.066186,68192.0,68191.0,0.3608]
[1729346663882,0.066186,68192.0,68189.0,0.4046977]
[1729346663883,0.43996,68191.0,68189.0,0.05863137]
[1729346664090,0.065992,68186.0,68181.0,0.07329562]
[1729346664278,0.065992,68186.0,68179.0,0.07329562]
[1729346664279,0.066192,68186.0,68179.0,0.07329562]
[1729346664973,0.066192,68186.0,68178.0,0.07329562]
[1729346665389,0.066192,68186.0,68180.0,0.065998]
[1729346666185,0.066192,68186.0,68178.0,0.07329562]
[1729346666391,0.066192,68186.0,68178.0,0.10995762]
[1729346666686,0.066192,68186.0,68178.0,0.04395862]
[1729346666875,0.066002,68176.0,68175.0,0.40475862]
[1729346667082,0.066202,68176.0,68175.0,0.3608]
[1729346667484,0.066202,68176.0,68172.0,0.0022]
[1729346667689,0.066205,68173.0,68172.0,0.0022]
[1729346667888,0.066205,68173.0,68172.0,0.068206]
[1729346674492,0.0002,68173.0,68172.0,0.17053824]
[1729346674696,0.066205,68173.0,68172.0,0.10453224]
[1729346675191,0.066205,68173.0,68172.0,0.19232431]
[1729346675595,0.066205,68173.0,68172.0,0.10453224]
[1729346676989,0.066205,68173.0,68172.0,0.17767219]
[1729346677379,0.066205,68173.0,68172.0,0.07533995]
[1729346678386,0.066205,68173.0,68172.0,0.0022]
[1729346679596,0.066205,68173.0,68172.0,0.07533995]
[1729346679796,0.066205,68173.0,68172.0,0.0022]
[1729346686993,0.066205,68173.0,68172.0,0.04605325]
[1729346687187,0.066205,68173.0,68172.0,0.0022]
[1729346687400,0.066205,68173.0,68172.0,0.04605325]
[1729346688394,0.066205,68173.0,68172.0,0.10432403]
[1729346694401,0.066205,68173.0,68172.0,0.21918799]
[1729346695402,0.066205,68173.0,68172.0,0.21933836]
[1729346696198,0.066205,68173.0,68172.0,0.13139592]
[1729346696500,0.066205,68173.0,68172.0,0.02927189]
[1729346697406,0.066205,68173.0,68172.0,0.09307789]
[1729346698404,0.066205,68173.0,68172.0,0.066006]
[1729346703315,0.066205,68173.0,68172.0,0.2902864]
[1729346706103,0.066205,68173.0,68172.0,0.16832549]
[1729346706709,0.066205,68173.0,68172.0,0.10231949]
[1729346708712,0.066205,68173.0,68172.0,0.10237728]
[1729346708901,0.066205,68173.0,68172.0,0.16838328]
[1729346709308,0.0002,68176.0,68172.0,0.29027673]
[1729346709512,0.0002,68176.0,68175.0,0.3608]
[1729346709711,0.0002,68176.0,68175.0,0.58507073]
[1729346709907,0.0002,68176.0,68175.0,0.22427073]
[1729346710510,0.066202,68176.0,68175.0,0.22427073]
[1729346712410,0.0002,68176.0,68174.0,0.066004]
[1729346712606,0.066202,68176.0,68175.0,0.22327852]
[1729346717316,0.066202,68176.0,68175.0,0.22304271]
[1729346718615,0.066003,68175.0,68174.0,0.066004]
[1729346718813,0.066203,68175.0,68174.0,0.066004]
[1729346726724,0.066203,68175.0,68174.0,0.28981229]
[1729346728616,0.066203,68175.0,68174.0,0.22380829]
[1729346730220,0.066203,68175.0,68174.0,0.58460829]
[1729346730618,0.066203,68175.0,68174.0,0.22380829]
[1729346730921,0.066203,68175.0,68174.0,0.58460829]
[1729346733619,0.066203,68175.0,68174.0,0.53622306]
[1729346734521,0.066203,68175.0,68174.0,0.17542306]
[1729346734725,0.066203,68175.0,68174.0,0.53622306]
[1729346736325,0.0002,68175.0,68173.0,0.0305]
[1729346736523,0.066203,68175.0,68174.0,0.46295129]
[1729346736730,0.066203,68175.0,68174.0,0.10215129]
[1729346737023,0.066203,68175.0,68174.0,0.46295129]
[1729346741329,0.066203,68175.0,68174.0,0.10218969]
[1729346741524,0.066203,68175.0,68174.0,0.46298969]
[1729346741724,0.066003,68175.0,68174.0,0.58479754]
[1729346741936,0.066003,68175.0,68174.0,0.22399754]
[1729346742530,0.0002,68186.0,68174.0,0.65080154]
[1729346742732,0.065995,68183.0,68182.0,0.08804534]
[1729346743027,0.065995,68183.0,68182.0,0.22351333]
[1729346745930,0.065995,68183.0,68182.0,0.22254941]
[1729346750934,0.065995,68183.0,68182.0,0.24849908]
[1729346753745,0.065995,68183.0,68182.0,0.12747946]
[1729346756742,0.065995,68183.0,68182.0,0.02594967]
[1729346756950,0.0002,68186.0,68181.0,0.0586229]
[1729346757146,0.066192,68186.0,68185.0,0.04396718]
[1729346759228,0.065993,68185.0,68184.0,0.04396718]
[1729346759546,0.066193,68185.0,68184.0,0.04396718]
[1729346760343,0.065996,68182.0,68181.0,0.08474227]
[1729346760539,0.066196,68182.0,68181.0,0.08474227]
[1729346763747,0.066196,68182.0,68181.0,0.12769477]
[1729346764436,0.066196,68182.0,68181.0,0.19369177]
[1729346767151,0.066196,68182.0,68181.0,0.28162612]
[1729346768850,0.066196,68182.0,68181.0,0.28161348]
[1729346769647,0.066196,68182.0,68181.0,0.2816557]
[1729346769848,0.066196,68182.0,68181.0,0.19367913]
[1729346771449,0.066196,68182.0,68181.0,0.55447913]
[1729346771651,0.066196,68182.0,68181.0,0.45291637]
[1729346774753,0.066196,68182.0,68181.0,0.09211637]
[1729346774952,0.066196,68182.0,68181.0,0.45291637]
[1729346777152,0.0002,68182.0,68181.0,0.45291637]
[1729346778642,0.0002,68182.0,68181.0,0.67516962]
[1729346778956,0.066196,68182.0,68181.0,0.67516962]
[1729346779352,0.066196,68182.0,68181.0,0.55431105]
[1729346782853,0.066196,68182.0,68181.0,0.19351105]
[1729346783154,0.066196,68182.0,68181.0,0.55431105]
[1729346783358,0.066196,68182.0,68181.0,0.6753967]
[1729346784653,0.066196,68182.0,68181.0,0.3145967]
[1729346784852,0.066196,68182.0,68181.0,0.6753967]
[1729346785753,0.066196,68182.0,68181.0,0.3145967]
[1729346786060,0.066196,68182.0,68181.0,0.6753967]
[1729346786965,0.066196,68182.0,68181.0,0.45291637]
[1729346787959,0.066196,68182.0,68181.0,0.51158578]
[1729346788962,0.066196,68182.0,68181.0,0.45291637]
[1729346791454,0.066196,68182.0,68181.0,0.51158578]
[1729346791654,0.066196,68182.0,68181.0,0.45291637]
[1729346793860,0.066196,68182.0,68181.0,0.6752643]
[1729346794367,0.0002,68182.0,68181.0,0.6752643]
[1729346796059,0.0002,68185.0,68184.0,0.065994]
[1729346796260,0.0002,68185.0,68184.0,0.28834193]
[1729346797065,0.0002,68185.0,68184.0,0.16743187]
[1729346797467,0.0002,68185.0,68184.0,0.16733215]
[1729346797959,0.066193,68185.0,68184.0,0.16733215]
[1729346798164,0.066193,68185.0,68184.0,0.28816434]
[1729346802569,0.0002,68185.0,68184.0,0.28816434]
[1729346803877,0.0002,68185.0,68184.0,0.64896434]
[1729346804375,0.0002,68185.0,68184.0,0.67996434]
[1729346805373,0.065985,68194.0,68192.0,0.065986]
[1729346805672,0.065985,68194.0,68193.0,0.46213815]
[1729346806073,0.065985,68194.0,68193.0,0.52812315]
[1729346807167,0.065979,68200.0,68193.0,0.46213815]
[1729346807366,0.065979,68200.0,68199.0,0.50004177]
[1729346807566,0.065979,68200.0,68199.0,0.52811815]
[1729346808775,0.065979,68200.0,68199.0,0.42678]
[1729346811077,0.065979,68200.0,68199.0,0.3608]
[1729346813470,0.06598,68199.0,68198.0,0.06598]
[1729346813780,0.06618,68199.0,68198.0,0.06598]
[1729346827484,0.065983,68195.0,68194.0,0.065984]
[1729346827686,0.065984,68194.0,68193.0,0.38717013]
[1729346827879,0.066184,68194.0,68193.0,0.38717013]
[1729346830090,0.066184,68194.0,68193.0,0.45315513]
[1729346831285,0.066184,68194.0,68193.0,0.49706264]
[1729346831878,0.066184,68194.0,68193.0,0.55389839]
[1729346832287,0.066184,68194.0,68193.0,0.64183287]
[1729346834190,0.066184,68194.0,68193.0,0.55389839]
[1729346834392,0.066184,68194.0,68193.0,0.55391602]
[1729346834593,0.066184,68194.0,68193.0,0.64188318]
[1729346835286,0.066184,68194.0,68193.0,0.55391602]
[1729346835495,0.066184,68194.0,68193.0,0.67403434]
[1729346835999,0.066184,68194.0,68193.0,0.55391602]
[1729346836885,0.066184,68194.0,68193.0,0.67405895]
[1729346837397,0.0002,68194.0,68193.0,0.67405895]
[1729346838790,0.0002,68194.0,68193.0,0.55391602]
[1729346839695,0.0002,68194.0,68193.0,0.67395735]
[1729346839993,0.0002,68194.0,68193.0,0.55391602]
[1729346841297,0.0002,68194.0,68193.0,0.67396453]
[1729346844984,0.0002,68194.0,68193.0,0.55391602]
[1729346845800,0.066184,68194.0,68193.0,0.55391602]
[1729346846986,0.066184,68194.0,68193.0,0.45315513]
[1729346847494,0.066184,68194.0,68193.0,0.51178683]
[1729346848098,0.0002,68194.0,68193.0,0.45315513]
[1729346854112,0.0002,68194.0,68193.0,0.67353191]
[1729346855802,0.0002,68194.0,68193.0,0.67354467]
[1729346856801,0.0002,68195.0,68193.0,0.60755967]
[1729346857008,0.0002,68195.0,68194.0,0.28637354]
[1729346858108,0.0002,68195.0,68194.0,0.16652261]
[1729346858301,0.0002,68195.0,68194.0,0.1668612]
[1729346860306,0.03674796,68209.0,68195.0,0.065983]
[1729346860511,0.03750796,68209.0,68204.0,0.426775]
[1729346860710,0.03674796,68209.0,68204.0,0.5276522]
[1729346861508,0.03674796,68209.0,68204.0,0.6473586]
[1729346861509,0.09428221,68207.0,68204.0,0.6473586]
[1729346861708,0.02831021,68207.0,68204.0,0.6473586]
[1729346861907,0.065973,68206.0,68204.0,0.426775]
[1729346863514,0.02831021,68207.0,68204.0,0.8461289]
[1729346863716,0.02831021,68207.0,68204.0,0.787575]
[1729346864009,0.02831021,68207.0,68204.0,0.84609601]
[1729346864207,0.02831021,68207.0,68204.0,0.8138525]
[1729346867410,0.09428221,68207.0,68204.0,0.8138525]
[1729346869005,0.09428221,68207.0,68204.0,0.91401631]
[1729346871114,0.02831021,68207.0,68206.0,0.065973]
[1729346871316,0.02831021,68207.0,68206.0,0.16613681]
[1729346872421,0.02831021,68207.0,68206.0,0.16602792]
[1729346876917,0.02831021,68207.0,68206.0,0.12442188]
[1729346877224,0.02831021,68207.0,68206.0,0.065973]
[1729346884020,0.02831021,68207.0,68206.0,0.28533705]
[1729346884620,0.02831021,68207.0,68206.0,0.28542194]
[1729346888323,0.03248723,68208.0,68207.0,0.065972]
[1729346888525,0.03248723,68208.0,68207.0,0.28542094]
[1729346889523,0.03248723,68208.0,68207.0,0.2850859]
[1729346891533,0.03248723,68208.0,68207.0,0.38771278]
[1729346892039,0.03248723,68208.0,68207.0,0.2850859]
[1729346898728,0.03248723,68208.0,68207.0,0.38771278]
[1729346899137,0.03248723,68208.0,68207.0,0.16593447]
[1729346899834,0.03248723,68208.0,68207.0,0.16603488]
[1729346902128,0.03248723,68208.0,68207.0,0.16606216]
[1729346904433,0.03248723,68208.0,68207.0,0.15386741]
[1729346904641,0.03248723,68208.0,68207.0,0.25395622]
[1729346905528,0.03248723,68208.0,68207.0,0.16606081]
[1729346906139,0.03248723,68208.0,68207.0,0.4238846]
[1729346909235,0.03248723,68208.0,68207.0,0.42398243]
[1729346910143,0.03248723,68208.0,68207.0,0.52653701]
[1729346910531,0.02523084,68209.0,68208.0,0.065971]
[1729346910736,0.02523084,68209.0,68208.0,0.42391382]
[1729346914140,0.02523084,68209.0,68208.0,0.16608899]
[1729346917749,0.02523084,68209.0,68208.0,0.52688899]
[1729346921154,0.02523084,68209.0,68208.0,0.2849155]
[1729346921366,0.02523084,68209.0,68208.0,0.6457155]
[1729346926951,0.02523084,68209.0,68208.0,0.2849155]
[1729346927143,0.02523084,68209.0,68208.0,0.6457155]
[1729346928346,0.02523084,68209.0,68208.0,0.64521844]
[1729346932655,0.02523084,68209.0,68208.0,0.28441844]
[1729346932852,0.02523084,68209.0,68208.0,0.64521844]
[1729346933052,0.02523084,68209.0,68208.0,0.28441844]
[1729346933247,0.02523084,68209.0,68208.0,0.64521844]
[1729346936356,0.02523084,68209.0,68208.0,0.426771]
[1729346943564,0.02523084,68209.0,68208.0,0.065971]
[1729346943755,0.02523084,68209.0,68208.0,0.426771]
[1729346944259,0.02523084,68209.0,68208.0,0.64609066]
[1729346946264,0.02523084,68209.0,68208.0,0.6460832]
[1729346947362,0.02523084,68209.0,68208.0,0.2852832]
[1729346947755,0.02523084,68209.0,68208.0,0.6460832]
[1729346951158,0.02523084,68209.0,68208.0,0.065971]
[1729346951360,0.02523084,68209.0,68208.0,0.60006295]
[1729346951559,0.02523084,68209.0,68208.0,0.60006302]
[1729346951768,0.02523084,68209.0,68208.0,0.50002017]
[1729346952264,0.02523084,68209.0,68208.0,0.6005563]
[1729346956076,0.02523084,68209.0,68208.0,0.60056204]
[1729346957369,0.02523084,68209.0,68208.0,0.23976204]
[1729346957970,0.02523084,68209.0,68208.0,0.60056204]
[1729346959174,0.04854264,68211.0,68208.0,0.64715564]
[1729346959367,0.04854264,68211.0,68210.0,0.3608]
[1729346959575,0.04854264,68211.0,68210.0,0.58118464]
[1729346960677,0.04854264,68211.0,68210.0,0.21997956]
[1729346960976,0.04854264,68211.0,68210.0,0.58077956]
[1729346962079,0.04854264,68211.0,68210.0,0.21997956]
[1729346962379,0.04854264,68211.0,68210.0,0.58077956]
[1729346965883,0.04854264,68211.0,68210.0,0.21997956]
[1729346966181,0.04854264,68211.0,68210.0,0.6540331]
[1729346966379,0.04854264,68211.0,68210.0,0.53441093]
[1729346969181,1.51511764,68211.0,68210.0,0.05861777]
[1729346969377,1.51511764,68211.0,68208.0,0.04397258]
[1729346969685,0.065976,68209.0,68208.0,0.04397258]
[1729346970075,1.105816,68209.0,68208.0,0.04397258]
[1729346970276,0.065976,68209.0,68208.0,0.04397258]
[1729346970585,0.065976,68209.0,68206.0,0.0002]
[1729346970586,0.065977,68208.0,68207.0,0.04397258]
[1729346971183,0.065977,68208.0,68206.0,0.0002]
[1729346971376,0.0304,68207.0,68206.0,0.0002]
[1729346974285,0.0304,68207.0,68206.0,0.1008556]
[1729346975082,0.0304,68207.0,68206.0,0.1668346]
[1729346979887,0.0304,68207.0,68206.0,0.25473885]
[1729346980097,0.0304,68207.0,68206.0,0.1668346]
[1729346980394,0.0304,68207.0,68206.0,0.28660683]
[1729346985292,0.0304,68207.0,68206.0,0.16663398]
[1729346985493,0.0304,68207.0,68206.0,0.28637247]
[1729346988492,0.0304,68207.0,68206.0,0.28638378]
[1729346989198,0.04854264,68211.0,68206.0,0.22040478]
[1729346989398,0.04854264,68211.0,68210.0,0.41933507]
[1729346991401,0.04854264,68211.0,68210.0,0.3608]
[1729346994303,0.04854264,68211.0,68210.0,0.426776]
[1729346996804,0.04854264,68211.0,68210.0,0.52707867]
[1729347001705,0.04854264,68211.0,68210.0,0.64667755]
[1729347002305,0.04854264,68211.0,68210.0,0.426776]
[1729347002505,0.04854264,68211.0,68210.0,0.64672353]
[1729347004521,0.04854264,68211.0,68210.0,0.426776]
[1729347010838,0.04854264,68211.0,68210.0,0.50002798]
[1729347011226,0.04854264,68211.0,68210.0,0.426776]
[1729347011421,0.04854264,68211.0,68210.0,0.64684233]
[1729347015738,0.04854264,68211.0,68210.0,0.8880053]
[1729347016434,0.04854264,68211.0,68210.0,0.64684233]
[1729347021534,0.04854264,68211.0,68210.0,0.64628348]
[1729347026349,0.04854264,68211.0,68210.0,0.64612512]
[1729347026552,0.04854264,68211.0,68210.0,0.52684578]
[1729347033446,0.04854264,68211.0,68210.0,0.61467275]
[1729347034555,0.00767207,68212.0,68211.0,0.065975]
[1729347034854,0.00767207,68212.0,68211.0,0.42377767]
[1729347036052,0.00767207,68212.0,68211.0,0.52622466]
[1729347036360,0.00767207,68212.0,68211.0,0.42377767]
[1729347040563,0.00767207,68212.0,68211.0,0.42109728]
[1729347040761,0.00767207,68212.0,68211.0,0.44789166]
[1729347041456,0.00767207,68212.0,68211.0,0.27989863]
[1729347042060,0.00767207,68212.0,68211.0,0.1920797]
[1729347042258,0.00767207,68212.0,68211.0,0.27989863]